fUST/lending_fUST_20250811
["ID","MTS","AMOUNT","RATE_DAILY","PERIOD"]
[378477630,1754880645384,-1051.15,0.00021598,2]
[378477644,1754880645393,-460.0,0.00021598,2]
[378477647,1754880645527,-460.0,0.00021599,2]
[378477649,1754880645536,-1880.4,0.00021599,2]
[378477651,1754880645545,-460.0,0.00021599,2]
[378477653,1754880645553,-1435.66,0.00021599,2]
[378477655,1754880645563,-460.0,0.000216,2]
[378477657,1754880645573,-719.33,0.000216,2]
[378477658,1754880645582,-460.0,0.000216,2]
[378477661,1754880645592,-460.0,0.000216,2]
[378477662,1754880645601,-1245.76,0.000216,2]
[378477664,1754880645611,-375.72965905,0.000216,2]
[378477666,1754880645620,-460.0,0.000216,2]
[378477668,1754880645629,-599.6,0.000216,2]
[378477670,1754880645639,-608.91,0.000216,2]
[378477672,1754880645648,-460.0,0.000216,2]
[378477674,1754880645658,-460.0,0.000216,2]
[378477676,1754880645668,-505.75783185,0.000216,2]
[378477678,1754880645677,-460.0,0.000216,2]
[378477680,1754880645687,-198.2227594,0.000216,2]
[378477682,1754880645696,-460.0,0.000216,2]
[378477684,1754880645708,-743.79,0.00021601,2]
[378477686,1754880645717,-460.0,0.00021601,2]
[378477688,1754880645727,-684.54,0.00021602,2]
[378477690,1754880645736,-460.0,0.00021602,2]
[378477692,1754880645746,-460.0,0.00021602,2]
[378477694,1754880645755,-945.08,0.00021602,2]
[378477696,1754880645764,-1475.15,0.00021602,2]
[378477698,1754880645774,-1832.92,0.00021602,2]
[378477700,1754880645784,-481.99,0.00021602,2]
[378477702,1754880645794,-2083.08,0.00021602,2]
[378477704,1754880645804,-1260.47,0.00021602,2]
[378477706,1754880645813,-260.0,0.00021623,2]
[378477708,1754880645823,-3287.2747133,0.00021655,2]
[378477710,1754880645833,-1680.0,0.00021728,2]
[378477712,1754880645843,-420.0,0.00021728,2]
[378477714,1754880645852,-646.33750976,0.00021773,2]
[378477716,1754880645865,-469.4,0.00021808,2]
[378477718,1754880645875,-1680.0,0.00021832,2]
[378477720,1754880645884,-1610.18574959,0.00021868,2]
[378477722,1754880645893,-883.65,0.00021871,2]
[378477724,1754880645903,-3392.3,0.00021871,2]
[378477726,1754880645913,-460.0,0.00021872,2]
[378477727,1754880645922,-460.0,0.00021872,2]
[378477729,1754880645932,-899.15,0.00021872,2]
[378477731,1754880645942,-664.01,0.00021872,2]
[378477733,1754880645953,-460.0,0.00021872,2]
[378477735,1754880645962,-460.0,0.00021872,2]
[378477737,1754880645971,-605.76,0.00021872,2]
[378477739,1754880645981,-2032.61,0.00021872,2]
[378477741,1754880645990,-460.0,0.00021872,2]
[378477743,1754880645999,-460.0,0.00021872,2]
[378477745,1754880646012,-2159.23,0.00021872,2]
[378477747,1754880646022,-551.89,0.00021872,2]
[378477749,1754880646031,-582.02,0.00021872,2]
[378477751,1754880646040,-2233.61,0.00021872,2]
[378477753,1754880646049,-460.0,0.00021872,2]
[378477755,1754880646059,-460.0,0.00021872,2]
[378477757,1754880646069,-469.06,0.00021872,2]
[378477759,1754880646078,-452.90458117,0.00021872,2]
[378477761,1754880646087,-460.0,0.00021872,2]
[378477763,1754880646096,-1051.15,0.00021872,2]
[378477765,1754880646106,-460.0,0.00021872,2]
[378477767,1754880646115,-460.0,0.00021873,2]
[378477769,1754880646124,-1880.4,0.00021873,2]
[378477771,1754880646134,-460.0,0.00021873,2]
[378477773,1754880646144,-1435.66,0.00021873,2]
[378477775,1754880646153,-460.0,0.00021874,2]
[378477777,1754880646163,-719.33,0.00021874,2]
[378477779,1754880646174,-460.0,0.00021874,2]
[378477781,1754880646184,-460.0,0.00021874,2]
[378477783,1754880646193,-1245.76,0.00021874,2]
[378477785,1754880646204,-460.0,0.00021874,2]
[378477787,1754880646214,-599.6,0.00021874,2]
[378477789,1754880646224,-608.91,0.00021874,2]
[378477791,1754880646233,-460.0,0.00021874,2]
[378477793,1754880646243,-460.0,0.00021874,2]
[378477795,1754880646252,-460.0,0.00021874,2]
[378477797,1754880646262,-460.0,0.00021874,2]
[378477799,1754880646272,-743.79,0.00021875,2]
[378477801,1754880646281,-460.0,0.00021875,2]
[378477803,1754880646290,-684.54,0.00021876,2]
[378477805,1754880646299,-460.0,0.00021876,2]
[378477807,1754880646309,-460.0,0.00021876,2]
[378477809,1754880646318,-945.08,0.00021876,2]
[378477811,1754880646327,-1475.15,0.00021876,2]
[378477813,1754880646337,-1832.92,0.00021876,2]
[378477815,1754880646346,-481.99,0.00021876,2]
[378477817,1754880646355,-2083.08,0.00021876,2]
[378477819,1754880646364,-1260.47,0.00021876,2]
[378477821,1754880646373,-500.0,0.00021917,2]
[378477823,1754880646383,-500.0,0.00021917,2]
[378477825,1754880646392,-504.71768055,0.00021917,2]
[378477827,1754880646402,-7211.27,0.00021917,2]
[378477829,1754880646412,-500.0,0.00021942,2]
[378477831,1754880646421,-500.0,0.00021942,2]
[378477833,1754880646431,-500.0,0.00021942,2]
[378477835,1754880646441,-500.24729121,0.00021942,2]
[378477837,1754880646451,-500.0,0.00021942,2]
[378477839,1754880646460,-500.0,0.00021942,2]
[378477841,1754880646469,-150.0,0.00021942,2]
[378477843,1754880646479,-628.32778718,0.00021946,2]
[378477845,1754880646488,-501.45717092,0.00021946,2]
[378477847,1754880646497,-505.09810618,0.00021971,2]
[378477849,1754880646506,-500.0,0.00021971,2]
[378477851,1754880646517,-500.88918197,0.0002198,2]
[378477853,1754880646526,-248.49009127,0.00021982,2]
[378477855,1754880646535,-500.0,0.00021982,2]
[378477857,1754880646544,-574.589025,0.00021982,2]
[378477859,1754880646553,-500.0,0.00021982,2]
[378477861,1754880646563,-500.0,0.00021982,2]
[378477863,1754880646572,-500.0,0.00021982,2]
[378477865,1754880646581,-500.0,0.00021982,2]
[378477867,1754880646590,-500.0,0.00021982,2]
[378477869,1754880646599,-500.67424642,0.00021982,2]
[378477871,1754880646608,-500.0,0.00021982,2]
[378477873,1754880646617,-158.46341349,0.00021982,2]
[378477875,1754880646626,-459.83092009,0.00021982,2]
[378477877,1754880646635,-158.46401038,0.00021982,2]
[378477879,1754880646645,-392.85503412,0.00021982,2]
[378477881,1754880646654,-500.0,0.00021982,2]
[378477883,1754880646665,-193.51165643,0.00021982,2]
[378477885,1754880646674,-500.0,0.00021982,2]
[378477887,1754880646683,-500.0,0.00021982,2]
[378477889,1754880646692,-500.0,0.00021982,2]
[378477891,1754880646706,-504.72208807,0.00021982,2]
[378477892,1754880646716,-501.71607261,0.00021982,2]
[378477894,1754880646725,-588.94637236,0.00021982,2]
[378477896,1754880646734,-500.0,0.00021982,2]
[378477898,1754880646744,-1669.47,0.00022,2]
[378477900,1754880646754,-225.0,0.00022,2]
[378477902,1754880646764,-500.0,0.00022004,2]
[378477904,1754880646773,-500.0,0.00022004,2]
[378477906,1754880646782,-500.0,0.0002203,2]
[378477908,1754880646792,-505.07956751,0.0002203,2]
[378477910,1754880646802,-500.0,0.0002203,2]
[378477912,1754880646811,-151.42926935,0.00022073,2]
[378477914,1754880646820,-469.4,0.00022117,2]
[378477916,1754880646829,-883.65,0.00022145,2]
[378477918,1754880646839,-3392.3,0.00022145,2]
[378477920,1754880646848,-460.0,0.00022146,2]
[378477922,1754880646860,-460.0,0.00022146,2]
[378477924,1754880646870,-899.15,0.00022146,2]
[378477926,1754880646879,-664.01,0.00022146,2]
[378477928,1754880646888,-460.0,0.00022146,2]
[378477930,1754880646898,-460.0,0.00022146,2]
[378477932,1754880646908,-605.76,0.00022146,2]
[378477934,1754880646917,-2032.61,0.00022146,2]
[378477936,1754880646926,-460.0,0.00022146,2]
[378477938,1754880646937,-460.0,0.00022146,2]
[378477940,1754880646947,-2159.23,0.00022146,2]
[378477942,1754880646957,-551.89,0.00022146,2]
[378477944,1754880646966,-582.02,0.00022146,2]
[378477946,1754880646975,-2233.61,0.00022146,2]
[378477948,1754880646985,-460.0,0.00022146,2]
[378477950,1754880646994,-469.06,0.00022146,2]
[378477952,1754880647003,-460.0,0.00022146,2]
[378477954,1754880647015,-460.0,0.00022146,2]
[378477957,1754880647028,-1051.15,0.00022146,2]
[378477959,1754880647041,-460.0,0.00022146,2]
[378477961,1754880647053,-460.0,0.00022147,2]
[378477964,1754880647066,-1880.4,0.00022147,2]
[378477966,1754880647076,-460.0,0.00022147,2]
[378477968,1754880647086,-1435.66,0.00022147,2]
[378477970,1754880647099,-460.0,0.00022148,2]
[378477972,1754880647112,-719.33,0.00022148,2]
[378477975,1754880647123,-460.0,0.00022148,2]
[378477977,1754880647135,-460.0,0.00022148,2]
[378477979,1754880647146,-1245.76,0.00022148,2]
[378477981,1754880647158,-460.0,0.00022148,2]
[378477984,1754880647169,-599.6,0.00022148,2]
[378477986,1754880647181,-608.91,0.00022148,2]
[378477988,1754880647193,-391.8637527,0.00022148,2]
[378477990,1754880647207,-460.0,0.00022148,2]
[378477993,1754880647218,-460.0,0.00022148,2]
[378477995,1754880647230,-460.0,0.00022148,2]
[378477997,1754880647241,-743.79,0.00022149,2]
[378477999,1754880647252,-460.0,0.00022149,2]
[378478001,1754880647263,-684.54,0.0002215,2]
[378478003,1754880647274,-460.0,0.0002215,2]
[378478006,1754880647286,-460.0,0.0002215,2]
[378478008,1754880647298,-945.08,0.0002215,2]
[378478010,1754880647309,-1475.15,0.0002215,2]
[378478012,1754880647320,-1832.92,0.0002215,2]
[378478014,1754880647331,-481.99,0.0002215,2]
[378478016,1754880647341,-2083.08,0.0002215,2]
[378478019,1754880647351,-1260.47,0.0002215,2]
[378478021,1754880647363,-360.0,0.00022171,2]
[378478023,1754880647373,-225.0,0.00022192,7]
[378478025,1754880647385,-2151.0,0.00022207,2]
[378478027,1754880647397,-636.0,0.00022207,2]
[378478030,1754880647408,-971.0,0.00022207,2]
[378478032,1754880647420,-646.33750976,0.00022322,2]
[378478034,1754880647431,-200.0,0.00022344,15]
[378478037,1754880647444,-200.0,0.00022344,15]
[378478039,1754880647456,-200.0,0.00022344,15]
[378478041,1754880647469,-200.0,0.00022344,15]
[378478044,1754880647483,-200.0,0.00022344,15]
[378478046,1754880647494,-200.0,0.00022344,15]
[378478048,1754880647504,-200.0,0.00022344,15]
[378478050,1754880647514,-883.65,0.00022419,2]
[378478052,1754880647524,-3392.3,0.00022419,2]
[378478054,1754880647536,-460.0,0.0002242,2]
[378478056,1754880647548,-460.0,0.0002242,2]
[378478058,1754880647559,-899.15,0.0002242,2]
[378478061,1754880647573,-664.01,0.0002242,2]
[378478063,1754880647585,-460.0,0.0002242,2]
[378478065,1754880647597,-460.0,0.0002242,2]
[378478067,1754880647607,-605.76,0.0002242,2]
[378478069,1754880647619,-2032.61,0.0002242,2]
[378478072,1754880647630,-460.0,0.0002242,2]
[378478074,1754880647641,-460.0,0.0002242,2]
[378478076,1754880647653,-2159.23,0.0002242,2]
[378478078,1754880647664,-551.89,0.0002242,2]
[378478080,1754880647674,-582.02,0.0002242,2]
[378478082,1754880647684,-2233.61,0.0002242,2]
[378478084,1754880647694,-460.0,0.0002242,2]
[378478085,1754880647705,-469.06,0.0002242,2]
[378478086,1754880647715,-506.4979227,0.0002242,2]
[378478087,1754880647725,-460.0,0.0002242,2]
[378478088,1754880647736,-1051.15,0.0002242,2]
[378478089,1754880647747,-460.0,0.0002242,2]
[378478090,1754880647757,-460.0,0.00022421,2]
[378478092,1754880647767,-1880.4,0.00022421,2]
[378478094,1754880647777,-460.0,0.00022421,2]
[378478096,1754880647788,-1435.66,0.00022421,2]
[378478098,1754880647798,-460.0,0.00022422,2]
[378478100,1754880647809,-719.33,0.00022422,2]
[378478102,1754880647820,-460.0,0.00022422,2]
[378478104,1754880647830,-460.0,0.00022422,2]
[378478106,1754880647841,-1245.76,0.00022422,2]
[378478109,1754880647851,-553.50280124,0.00022422,2]
[378478111,1754880647865,-599.6,0.00022422,2]
[378478113,1754880647875,-608.91,0.00022422,2]
[378478115,1754880647886,-460.0,0.00022422,2]
[378478117,1754880647897,-460.0,0.00022422,2]
[378478119,1754880647907,-460.0,0.00022422,2]
[378478121,1754880647917,-743.79,0.00022423,2]
[378478123,1754880647929,-460.0,0.00022423,2]
[378478126,1754880647940,-684.54,0.00022424,2]
[378478128,1754880647951,-460.0,0.00022424,2]
[378478130,1754880647961,-460.0,0.00022424,2]
[378478132,1754880647971,-945.08,0.00022424,2]
[378478134,1754880647981,-1475.15,0.00022424,2]
[378478136,1754880647992,-1832.92,0.00022424,2]
[378478139,1754880648002,-481.99,0.00022424,2]
[378478141,1754880648012,-2083.08,0.00022424,2]
[378478143,1754880648023,-1260.47,0.00022424,2]
[378478145,1754880648034,-469.4,0.00022427,2]
[378478147,1754880648045,-1000.0,0.0002249,2]
[378478149,1754880648056,-250.0,0.0002249,2]
[378478152,1754880648067,-1000.0,0.0002249,2]
[378478154,1754880648078,-151.0,0.000225,9]
[378478156,1754880648088,-1000.0,0.00022519,2]
[378478158,1754880648098,-1000.0,0.0002253,2]
[378478160,1754880648109,-1015.7482093,0.0002253,2]
[378478162,1754880648121,-1000.0,0.0002253,2]
[378478164,1754880648131,-1000.0,0.0002253,2]
[378478166,1754880648142,-1003.72267243,0.0002253,2]
[378478169,1754880648153,-1000.0,0.0002253,2]
[378478171,1754880648164,-1000.0,0.0002253,2]
[378478173,1754880648175,-152.41906297,0.0002253,2]
[378478175,1754880648186,-501.19910643,0.0002253,2]
[378478177,1754880648196,-1000.0,0.0002253,2]
[378478179,1754880648208,-501.68469329,0.0002253,2]
[378478182,1754880648219,-505.63184088,0.00022552,2]
[378478184,1754880648230,-1000.0,0.00022552,2]
[378478186,1754880648242,-509.5504893,0.00022578,2]
[378478188,1754880648252,-1000.0,0.00022578,2]
[378478190,1754880648263,-448.4,0.00022638,2]
[378478192,1754880648274,-883.65,0.00022693,2]
[378478194,1754880648286,-3392.3,0.00022693,2]
[378478196,1754880648297,-460.0,0.00022694,2]
[378478199,1754880648307,-460.0,0.00022694,2]
[378478201,1754880648318,-899.15,0.00022694,2]
[378478203,1754880648328,-664.01,0.00022694,2]
[378478205,1754880648339,-412.16071468,0.00022694,2]
[378478207,1754880648350,-460.0,0.00022694,2]
[378478209,1754880648361,-605.76,0.00022694,2]
[378478211,1754880648372,-2032.61,0.00022694,2]
[378478213,1754880648382,-460.0,0.00022694,2]
[378478216,1754880648393,-460.0,0.00022694,2]
[378478218,1754880648405,-2159.23,0.00022694,2]
[378478220,1754880648416,-551.89,0.00022694,2]
[378478222,1754880648427,-582.02,0.00022694,2]
[378478224,1754880648437,-2233.61,0.00022694,2]
[378478227,1754880648449,-460.0,0.00022694,2]
[378478229,1754880648460,-469.06,0.00022694,2]
[378478231,1754880648470,-460.0,0.00022694,2]
[378478233,1754880648481,-1051.15,0.00022694,2]
[378478235,1754880648492,-460.0,0.00022694,2]
[378478237,1754880648503,-460.0,0.00022695,2]
[378478239,1754880648513,-1880.4,0.00022695,2]
[378478241,1754880648524,-460.0,0.00022695,2]
[378478244,1754880648535,-1435.66,0.00022695,2]
[378478246,1754880648546,-460.0,0.00022696,2]
[378478248,1754880648558,-719.33,0.00022696,2]
[378478250,1754880648569,-460.0,0.00022696,2]
[378478252,1754880648579,-460.0,0.00022696,2]
[378478254,1754880648591,-1245.76,0.00022696,2]
[378478257,1754880648602,-599.6,0.00022696,2]
[378478259,1754880648614,-608.91,0.00022696,2]
[378478261,1754880648625,-460.0,0.00022696,2]
[378478263,1754880648636,-460.0,0.00022696,2]
[378478265,1754880648647,-460.0,0.00022696,2]
[378478268,1754880648659,-743.79,0.00022697,2]
[378478270,1754880648670,-460.0,0.00022697,2]
[378478272,1754880648681,-684.54,0.00022698,2]
[378478274,1754880648692,-179.71481895,0.00022698,2]
[378478276,1754880648705,-460.0,0.00022698,2]
[378478278,1754880648716,-945.08,0.00022698,2]
[378478280,1754880648727,-1475.15,0.00022698,2]
[378478283,1754880648738,-1832.92,0.00022698,2]
[378478285,1754880648749,-481.99,0.00022698,2]
[378478287,1754880648760,-2083.08,0.00022698,2]
[378478288,1754880648771,-1260.47,0.00022698,2]
[378478289,1754880648968,-151.0,0.000227,10]
[378478290,1754880648982,-151.0,0.000227,5]
[378478291,1754880648992,-8192.67287444,0.00022719,2]
[378478292,1754880649002,-460.0,0.00022719,2]
[378478293,1754880649012,-522.0,0.00022724,2]
[378478294,1754880649021,-469.4,0.00022736,2]
[378478295,1754880649031,-522.0,0.00022738,2]
[378478296,1754880649041,-374.04348263,0.0002274,2]
[378478297,1754880649050,-228.3,0.00022802,2]
[378478298,1754880649059,-385.583322,0.00022864,2]
[378478299,1754880649068,-151.0,0.00022894,2]
[378478300,1754880649077,-808.29267942,0.00022894,2]
[378478301,1754880649195,-5151.41048659,0.00022894,2]
[378478302,1754880649205,-151.0,0.000229,10]
[378478303,1754880649214,-883.65,0.00022967,2]
[378478304,1754880649223,-3392.3,0.00022967,2]
[378478305,1754880649234,-460.0,0.00022968,2]
[378478306,1754880649244,-460.0,0.00022968,2]
[378478307,1754880649253,-899.15,0.00022968,2]
[378478308,1754880649263,-664.01,0.00022968,2]
[378478309,1754880649272,-460.0,0.00022968,2]
[378478310,1754880649282,-605.76,0.00022968,2]
[378478311,1754880649291,-2032.61,0.00022968,2]
[378478313,1754880649301,-349.05198786,0.00022968,2]
[378478314,1754880649313,-347.26652104,0.00022968,2]
[378478315,1754880649325,-2159.23,0.00022968,2]
[378478316,1754880649336,-551.89,0.00022968,2]
[378478317,1754880649345,-582.02,0.00022968,2]
[378478318,1754880649355,-2233.61,0.00022968,2]
[378478319,1754880649365,-460.0,0.00022968,2]
[378478320,1754880649376,-469.06,0.00022968,2]
[378478321,1754880649388,-460.0,0.00022968,2]
[378478322,1754880649397,-1051.15,0.00022968,2]
[378478323,1754880649410,-460.0,0.00022968,2]
[378478324,1754880649420,-460.0,0.00022969,2]
[378478325,1754880649430,-1880.4,0.00022969,2]
[378478326,1754880649440,-336.64404498,0.00022969,2]
[378478327,1754880649451,-1435.66,0.00022969,2]
[378478328,1754880649461,-460.0,0.0002297,2]
[378478329,1754880649471,-719.33,0.0002297,2]
[378478330,1754880649481,-460.0,0.0002297,2]
[378478331,1754880649491,-460.0,0.0002297,2]
[378478332,1754880649501,-1245.76,0.0002297,2]
[378478333,1754880649510,-599.6,0.0002297,2]
[378478334,1754880649520,-608.91,0.0002297,2]
[378478336,1754880649530,-460.0,0.0002297,2]
[378478337,1754880649540,-598.79180504,0.0002297,2]
[378478338,1754880649559,-460.0,0.0002297,2]
[378478339,1754880649575,-743.79,0.00022971,2]
[378478340,1754880649585,-460.0,0.00022971,2]
[378478341,1754880649595,-684.54,0.00022972,2]
[378478342,1754880649606,-460.0,0.00022972,2]
[378478343,1754880649618,-945.08,0.00022972,2]
[378478344,1754880649628,-1475.15,0.00022972,2]
[378478345,1754880649639,-1832.92,0.00022972,2]
[378478346,1754880649651,-481.99,0.00022972,2]
[378478347,1754880649663,-2083.08,0.00022972,2]
[378478348,1754880649674,-1260.47,0.00022972,2]
[378478349,1754880649684,-193.97355447,0.00023,2]
[378478350,1754880649695,-1366.01223507,0.00023,2]
[378478351,1754880649707,-5045.44332936,0.00023,2]
[378478352,1754880649720,-1340.68309606,0.00023,2]
[378478353,1754880649731,-160.0,0.00023,2]
[378478354,1754880649742,-385.583322,0.00023008,15]
[378478355,1754880649753,-225.0,0.00023014,7]
[378478356,1754880649765,-522.0,0.00023035,2]
[378478357,1754880649775,-502.53042982,0.00023038,2]
[378478358,1754880649785,-350.0,0.00023038,2]
[378478359,1754880649795,-1500.0,0.00023038,2]
[378478360,1754880649807,-469.4,0.00023045,2]
[378478361,1754880649818,-1500.0,0.00023067,2]
[378478362,1754880649828,-1462.45925946,0.00023078,2]
[378478363,1754880649839,-1500.0,0.00023078,2]
[378478364,1754880649852,-1500.0,0.00023078,2]
[378478365,1754880649872,-690.45352022,0.00023078,2]
[378478366,1754880649892,-1500.0,0.00023078,2]
[378478367,1754880649909,-670.59275909,0.00023078,2]
[378478368,1754880649919,-11869.05906486,0.000231,5]
[378478369,1754880649931,-1500.0,0.000231,2]
[378478370,1754880649941,-538.30451932,0.0002311,2]
[378478371,1754880649952,-1500.0,0.00023126,2]
[378478372,1754880649964,-1669.47,0.00023169,2]
[378478373,1754880649974,-385.583322,0.00023174,15]
[378478374,1754880649985,-883.65,0.00023241,2]
[378478375,1754880649995,-3392.3,0.00023241,2]
[378478376,1754880650006,-380.02945691,0.00023242,2]
[378478377,1754880650016,-460.0,0.00023242,2]
[378478378,1754880650027,-899.15,0.00023242,2]
[378478379,1754880650037,-664.01,0.00023242,2]
[378478380,1754880650047,-460.0,0.00023242,2]
[378478381,1754880650058,-605.76,0.00023242,2]
[378478382,1754880650069,-2032.61,0.00023242,2]
[378478383,1754880650079,-2159.23,0.00023242,2]
[378478384,1754880650089,-551.89,0.00023242,2]
[378478385,1754880650098,-582.02,0.00023242,2]
[378478386,1754880650108,-2233.61,0.00023242,2]
[378478387,1754880650118,-460.0,0.00023242,2]
[378478389,1754880650129,-469.06,0.00023242,2]
[378478391,1754880650139,-460.0,0.00023242,2]
[378478392,1754880650149,-1051.15,0.00023242,2]
[378478393,1754880650160,-460.0,0.00023242,2]
[378478394,1754880650170,-460.0,0.00023243,2]
[378478395,1754880650180,-1880.4,0.00023243,2]
[378478396,1754880650190,-1435.66,0.00023243,2]
[378478397,1754880650201,-460.0,0.00023244,2]
[378478398,1754880650211,-719.33,0.00023244,2]
[378478399,1754880650220,-460.0,0.00023244,2]
[378478400,1754880650230,-460.0,0.00023244,2]
[378478401,1754880650244,-1245.76,0.00023244,2]
[378478402,1754880650253,-599.6,0.00023244,2]
[378478404,1754880650264,-608.91,0.00023244,2]
[378478406,1754880650274,-460.0,0.00023244,2]
[378478407,1754880650284,-460.0,0.00023244,2]
[378478408,1754880650294,-743.79,0.00023245,2]
[378478409,1754880650304,-460.0,0.00023245,2]
[378478410,1754880650316,-684.54,0.00023246,2]
[378478411,1754880650327,-460.0,0.00023246,2]
[378478412,1754880650338,-945.08,0.00023246,2]
[378478413,1754880650354,-1475.15,0.00023246,2]
[378478414,1754880650364,-1832.92,0.00023246,2]
[378478415,1754880650374,-481.99,0.00023246,2]
[378478416,1754880650384,-2083.08,0.00023246,2]
[378478417,1754880650395,-1260.47,0.00023246,2]
[378478418,1754880650405,-560.0,0.00023267,2]
[378478419,1754880650415,-500.0,0.00023288,2]
[378478420,1754880650425,-385.583322,0.0002334,15]
[378478421,1754880650435,-522.0,0.00023345,2]
[378478422,1754880650446,-469.4,0.00023354,2]
[378478423,1754880650457,-385.583322,0.00023373,2]
[378478424,1754880650468,-522.0,0.00023387,2]
[378478425,1754880650478,-269.42,0.000234,2]
[378478426,1754880650488,-151.0,0.000234,9]
[378478427,1754880650498,-448.4,0.000234,2]
[378478428,1754880650508,-3287.2747133,0.00023409,2]
[378478429,1754880650519,-159.0,0.000235,4]
[378478430,1754880650529,-1000.0,0.000235,2]
[378478431,1754880650540,-385.583322,0.00023506,15]
[378478432,1754880650550,-883.65,0.00023515,2]
[378478433,1754880650561,-3392.3,0.00023515,2]
[378478434,1754880650571,-460.0,0.00023516,2]
[378478435,1754880650581,-899.15,0.00023516,2]
[378478436,1754880650590,-664.01,0.00023516,2]
[378478437,1754880650600,-460.0,0.00023516,2]
[378478438,1754880650611,-605.76,0.00023516,2]
[378478439,1754880650622,-2032.61,0.00023516,2]
[378478440,1754880650633,-2159.23,0.00023516,2]
[378478441,1754880650643,-551.89,0.00023516,2]
[378478442,1754880650654,-582.02,0.00023516,2]
[378478443,1754880650665,-2233.61,0.00023516,2]
[378478444,1754880650677,-439.20336698,0.00023516,2]
[378478445,1754880650687,-469.06,0.00023516,2]
[378478446,1754880650701,-460.0,0.00023516,2]
[378478447,1754880650714,-1051.15,0.00023516,2]
[378478448,1754880650726,-460.0,0.00023516,2]
[378478449,1754880650738,-460.0,0.00023517,2]
[378478450,1754880650749,-1880.4,0.00023517,2]
[378478451,1754880650760,-1435.66,0.00023517,2]
[378478452,1754880650770,-460.0,0.00023518,2]
[378478453,1754880650780,-719.33,0.00023518,2]
[378478454,1754880650791,-460.0,0.00023518,2]
[378478455,1754880650801,-460.0,0.00023518,2]
[378478456,1754880650812,-1245.76,0.00023518,2]
[378478458,1754880650822,-599.6,0.00023518,2]
[378478460,1754880650832,-608.91,0.00023518,2]
[378478462,1754880650843,-460.0,0.00023518,2]
[378478464,1754880650853,-460.0,0.00023518,2]
[378478466,1754880650867,-743.79,0.00023519,2]
[378478468,1754880650881,-460.0,0.00023519,2]
[378478469,1754880650893,-684.54,0.0002352,2]
[378478470,1754880650903,-460.0,0.0002352,2]
[378478471,1754880650914,-945.08,0.0002352,2]
[378478472,1754880650927,-1475.15,0.0002352,2]
[378478474,1754880650940,-1832.92,0.0002352,2]
[378478475,1754880650954,-481.99,0.0002352,2]
[378478477,1754880650964,-2083.08,0.0002352,2]
[378478478,1754880650975,-1260.47,0.0002352,2]
[378478479,1754880650985,-200.0,0.00023561,2]
[378478480,1754880650994,-200.0,0.00023561,2]
[378478481,1754880651005,-200.0,0.00023561,2]
[378478482,1754880651015,-176.36462439,0.00023561,2]
[378478483,1754880651025,-522.0,0.00023571,2]
[378478484,1754880651035,-450.0,0.00023586,2]
[378478485,1754880651045,-2000.0,0.00023586,2]
[378478487,1754880651055,-2000.0,0.00023615,2]